bitfinex/quotes_SOLUSD_20240604
["timestamp","ask_amount","ask_price","bid_price","bid_amount"]
[1717522228126,2.1918,168.81,168.75,8.9225]
[1717522228329,8.9218,168.81,168.75,8.9225]
[1717522228625,8.9221,168.79,168.73,8.9227]
[1717522228933,6.73,168.8,168.75,2.1925]
[1717522229810,6.73,168.8,168.76,2.1924]
[1717522230017,6.73,168.82,168.77,2.1922]
[1717522230214,8.9217,168.82,168.77,2.1922]
[1717522230633,6.73,168.82,168.77,2.1922]
[1717522230813,2.1916,168.83,168.78,2.1921]
[1717522231335,2.1914,168.84,168.79,6.73]
[1717522231636,8.9214,168.84,168.78,8.9221]
[1717522231821,2.1915,168.83,168.78,8.9221]
[1717522232023,10.8341,168.88,168.8,6.73]
[1717522232335,2.1913,168.85,168.8,2.1919]
[1717522232925,8.9212,168.86,168.81,2.1917]
[1717522233116,2.1912,168.86,168.81,2.1917]
[1717522233314,8.9212,168.86,168.81,2.1917]
[1717522233838,2.1912,168.86,168.81,8.9217]
[1717522235223,2.191,168.87,168.81,8.9217]
[1717522235529,2.1911,168.86,168.81,8.9217]
[1717522236322,6.73,168.88,168.78,10.9607]
[1717522236323,2.1913,168.85,168.8,2.1918]
[1717522236532,2.1913,168.85,168.81,6.73]
[1717522236730,2.1913,168.85,168.8,2.1918]
[1717522236914,2.1913,168.85,168.8,8.9218]
[1717522237235,8.9212,168.86,168.8,8.9218]
[1717522237456,2.1912,168.86,168.81,5.9851]
[1717522238140,2.1913,168.85,168.81,5.9851]
[1717522238928,2.1913,168.85,168.8,2.1918]
[1717522239134,2.1913,168.85,168.8,8.9218]
[1717522239519,8.9212,168.86,168.81,2.1917]
[1717522239714,2.1912,168.86,168.81,2.1917]
[1717522239919,2.1912,168.86,168.81,8.9217]
[1717522240149,2.1913,168.85,168.8,8.9218]
[1717522241817,2.1913,168.85,168.78,4.3842]
[1717522241818,2.1914,168.84,168.79,2.192]
[1717522242017,6.73,168.84,168.8,2.1919]
[1717522242433,8.9213,168.85,168.8,2.1919]
[1717522243931,2.1913,168.85,168.8,2.1919]
[1717522244142,8.9213,168.85,168.8,2.1919]
[1717522245139,2.1913,168.85,168.8,2.1919]
[1717522245637,9.0912,168.86,168.81,2.1917]
[1717522245846,2.1912,168.86,168.81,2.1917]
[1717522246071,8.9211,168.87,168.82,2.1916]
[1717522246341,2.1911,168.87,168.82,2.1916]
[1717522249224,2.1911,168.86,168.81,8.9217]
[1717522249427,2.1911,168.86,168.82,2.1916]
[1717522249626,8.9211,168.87,168.82,2.1916]
[1717522250051,2.1909,168.88,168.83,2.1914]
[1717522250249,2.1909,168.88,168.83,8.9214]
[1717522250451,6.4065,168.91,168.84,2.1914]
[1717522250743,2.1909,168.89,168.84,8.9214]
[1717522252249,2.1909,168.89,168.84,2.1914]
[1717522252637,2.1909,168.89,168.84,8.9214]
[1717522253935,2.1909,168.89,168.85,2.1912]
[1717522254338,2.1909,168.89,168.84,8.9213]
[1717522255256,2.1907,168.9,168.85,8.9212]
[1717522257449,1.6907,168.9,168.85,8.9212]
[1717522259058,2.1908,168.89,168.85,6.73]
[1717522259752,2.1908,168.89,168.85,8.9212]
[1717522259946,2.1907,168.9,168.85,8.9212]
[1717522260738,6.9,168.89,168.82,6.73]
[1717522261058,8.9209,168.88,168.83,2.1914]
[1717522261431,2.191,168.87,168.83,2.1914]
[1717522261630,8.9209,168.88,168.83,2.1914]
[1717522262252,2.1909,168.88,168.83,2.1914]
[1717522262643,9.0908,168.89,168.84,2.1913]
[1717522262832,6.73,168.88,168.81,16.3484]
[1717522263035,8.9211,168.87,168.82,2.1916]
[1717522263867,8.9212,168.86,168.82,2.1916]
[1717522264166,8.9211,168.87,168.82,2.1915]
[1717522264684,8.9211,168.87,168.83,2.1915]
[1717522265573,8.9211,168.87,168.82,2.1916]
[1717522265753,2.1911,168.86,168.82,2.1916]
[1717522266386,2.1911,168.86,168.81,6.73]
[1717522266387,8.9211,168.86,168.81,2.1917]
[1717522266760,2.1911,168.86,168.81,2.1917]
[1717522267657,2.1911,168.86,168.79,19.7281]
[1717522267658,2.1914,168.84,168.79,2.1919]
[1717522267852,6.73,168.85,168.8,2.1918]
[1717522268077,8.9213,168.85,168.8,2.1918]
[1717522268284,6.73,168.85,168.81,2.1918]
[1717522268592,2.1912,168.86,168.82,2.1916]
[1717522268593,8.9212,168.86,168.82,2.1916]
[1717522268882,8.9212,168.86,168.81,2.1917]
[1717522269184,2.1913,168.85,168.8,2.1918]
[1717522270584,2.1913,168.85,168.79,6.73]
[1717522270585,2.1914,168.84,168.79,8.922]
[1717522270890,2.1915,168.83,168.79,2.192]
[1717522271064,2.1915,168.83,168.78,6.73]
[1717522271065,2.1915,168.83,168.78,8.9221]
[1717522272494,2.1915,168.83,168.79,45.0]
[1717522272871,2.1915,168.83,168.78,2.1921]
[1717522273068,2.1918,168.81,168.76,2.1923]
[1717522273272,2.1918,168.81,168.77,2.1923]
[1717522273488,2.1918,168.81,168.76,8.9223]
[1717522273792,8.9217,168.82,168.77,2.1923]
[1717522274469,8.9217,168.82,168.77,47.1923]
[1717522274980,8.9217,168.82,168.77,2.1923]
[1717522275190,2.1918,168.81,168.77,2.1923]
[1717522275565,8.9217,168.82,168.77,2.1923]
[1717522276657,0.34,168.84,168.77,6.73]
[1717522276992,2.5315,168.83,168.78,2.192]
[1717522277485,0.34,168.83,168.79,2.192]
[1717522277684,2.1916,168.83,168.79,2.192]
[1717522278061,2.1916,168.83,168.78,53.9221]
[1717522278258,2.1916,168.82,168.78,53.9221]
[1717522279190,2.1916,168.83,168.78,53.9221]
[1717522279698,2.1916,168.83,168.79,2.192]
[1717522279866,2.1916,168.83,168.79,8.922]
[1717522280491,11.1127,168.85,168.78,53.9221]
[1717522280698,0.17,168.84,168.78,53.9221]
[1717522281073,2.1917,168.82,168.78,51.73]
[1717522281276,2.1917,168.82,168.78,53.9221]
[1717522281791,2.1917,168.82,168.78,51.73]
[1717522282582,2.1916,168.83,168.78,53.9221]
[1717522283777,2.1913,168.85,168.8,6.73]
[1717522283984,2.1913,168.85,168.81,6.73]
[1717522284199,2.1913,168.85,168.81,8.9218]
[1717522284386,2.1913,168.85,168.82,6.73]
[1717522285876,2.1914,168.84,168.82,6.73]
[1717522286079,4.3821,168.87,168.82,6.73]
[1717522286273,2.1912,168.86,168.82,6.73]
[1717522286468,2.1912,168.86,168.83,51.73]
[1717522286882,2.1909,168.88,168.83,53.9215]
[1717522287075,6.73,168.92,168.85,6.73]
[1717522287307,19.357,168.93,168.85,6.73]
[1717522287490,2.1907,168.9,168.85,6.73]
[1717522287688,2.1907,168.89,168.85,6.73]
[1717522288279,2.1909,168.88,168.83,45.0]
[1717522288470,2.1909,168.88,168.83,2.1915]
[1717522288670,2.1908,168.89,168.83,47.1915]
[1717522289104,2.1908,168.89,168.84,45.0]
[1717522289289,2.1909,168.88,168.82,47.1916]
[1717522289605,2.1909,168.88,168.83,6.73]
[1717522289789,2.1909,168.88,168.84,45.0]
[1717522290883,17.1667,168.93,168.84,53.9213]
[1717522291198,2.1907,168.9,168.85,6.73]
[1717522291377,2.1907,168.9,168.86,45.0]
[1717522292384,2.1909,168.88,168.86,45.0]
[1717522292590,2.1909,168.88,168.83,6.73]
[1717522292898,2.1909,168.88,168.83,8.9215]
[1717522293107,2.1909,168.88,168.84,45.0]
[1717522294091,2.1909,168.88,168.86,6.73]
[1717522294395,2.1908,168.89,168.86,6.73]
[1717522294915,2.1909,168.88,168.86,6.73]
[1717522295285,2.1909,168.88,168.84,45.0]
[1717522295614,2.1909,168.88,168.85,6.73]
[1717522295979,26.4448,168.91,168.85,6.73]
[1717522295980,6.73,168.91,168.85,6.73]
[1717522296185,2.1914,168.84,168.79,6.73]
[1717522296385,2.1914,168.84,168.79,8.922]
[1717522296598,2.1915,168.83,168.78,2.1921]
[1717522296895,2.1915,168.83,168.79,6.73]
[1717522297083,2.1915,168.83,168.79,8.922]
[1717522298110,2.1915,168.83,168.79,2.192]
[1717522298282,2.1915,168.83,168.79,8.922]
[1717522298482,2.1914,168.84,168.8,8.9219]
[1717522298704,2.1913,168.85,168.8,53.9219]
[1717522298917,2.1915,168.84,168.8,51.73]
[1717522299207,2.1915,168.83,168.8,6.73]
[1717522300009,2.1915,168.84,168.8,6.73]
[1717522301284,2.1915,168.84,168.79,2.192]
[1717522301484,2.1915,168.84,168.8,6.73]
[1717522303217,2.1915,168.84,168.8,8.9218]
[1717522303407,2.1913,168.85,168.81,6.73]
[1717522303899,2.1913,168.85,168.81,8.9217]
[1717522304103,2.1913,168.85,168.82,6.73]
[1717522304308,2.1912,168.86,168.82,6.73]
[1717522306515,2.1912,168.86,168.83,6.73]
[1717522307017,2.1912,168.85,168.83,6.73]
[1717522307396,2.1912,168.86,168.83,6.73]
[1717522310704,2.191,168.87,168.84,6.73]
[1717522311400,2.1909,168.88,168.86,6.73]
[1717522311993,2.191,168.87,168.86,6.73]
[1717522312197,2.191,168.87,168.85,6.73]
[1717522313919,2.1912,168.86,168.82,2.1916]
[1717522314222,2.1912,168.85,168.83,6.73]
[1717522316620,2.1912,168.86,168.83,6.73]
[1717522316830,2.1912,168.86,168.82,2.1916]
[1717522316831,2.1911,168.87,168.84,6.73]
[1717522317904,2.1911,168.87,168.83,2.1915]
[1717522318233,2.1911,168.87,168.85,6.73]
[1717522318599,2.1911,168.87,168.84,6.73]
[1717522319020,2.1911,168.86,168.84,6.73]
[1717522319719,2.1911,168.87,168.84,6.73]
[1717522319933,2.1911,168.86,168.84,6.73]
[1717522320313,2.1912,168.85,168.81,47.1917]
[1717522320624,2.1912,168.85,168.81,2.1917]
[1717522320926,2.1912,168.85,168.81,8.9217]
[1717522322109,2.1912,168.86,168.81,8.9217]
[1717522322421,4.382,168.87,168.82,6.73]
[1717522322422,2.1913,168.85,168.82,6.73]
[1717522322606,2.1913,168.85,168.81,2.1917]
[1717522322816,2.1913,168.85,168.82,6.73]
[1717522324226,2.1912,168.86,168.82,6.73]
[1717522325036,2.1912,168.86,168.82,8.9216]
[1717522325242,2.191,168.87,168.82,8.9216]
[1717522325526,2.1911,168.86,168.82,8.9216]
[1717522326736,2.1911,168.86,168.83,6.73]
[1717522327322,2.1911,168.87,168.83,6.73]
[1717522327521,2.1911,168.87,168.83,8.9215]
[1717522328241,2.1911,168.87,168.84,6.73]
[1717522328912,2.3609,168.88,168.84,2.1914]
[1717522329220,2.1909,168.88,168.86,6.73]
[1717522329425,2.1909,168.88,168.84,2.1913]
[1717522329426,2.1909,168.88,168.85,6.73]
[1717522330134,2.1908,168.89,168.85,8.9212]
[1717522330731,2.1908,168.89,168.85,6.73]
[1717522331945,2.1909,168.88,168.85,6.73]
[1717522332516,2.1908,168.89,168.85,8.9212]
[1717522333243,2.1907,168.9,168.85,8.9212]
[1717522333547,2.1907,168.89,168.85,8.9212]
[1717522333856,2.1907,168.89,168.85,6.73]
[1717522334644,4.551,168.91,168.85,6.73]
[1717522334645,2.1909,168.88,168.85,6.73]
[1717522335548,2.1908,168.89,168.85,6.73]
[1717522335751,2.1908,168.89,168.84,2.1913]
[1717522336042,2.1909,168.88,168.85,6.73]
[1717522336350,2.1909,168.88,168.84,2.1913]
[1717522336661,2.1911,168.86,168.82,2.1916]
[1717522336824,2.1911,168.86,168.83,6.73]
[1717522337954,13.1443,168.9,168.84,6.73]
[1717522338244,2.1909,168.88,168.83,2.1915]
[1717522338545,2.1909,168.88,168.84,6.73]
[1717522338722,2.1909,168.88,168.85,6.73]
[1717522339251,2.1909,168.88,168.83,2.1915]
[1717522339544,2.191,168.87,168.83,2.1915]
[1717522340741,2.191,168.87,168.82,47.1916]
[1717522341043,2.191,168.87,168.83,45.0]
[1717522341248,2.191,168.87,168.82,2.1916]
[1717522341935,2.191,168.87,168.83,2.1915]
[1717522343748,2.191,168.87,168.82,2.1916]
[1717522343954,2.1911,168.86,168.82,2.1916]
[1717522344247,2.1911,168.87,168.82,2.1916]
[1717522344657,2.1911,168.86,168.82,2.1916]
[1717522344951,2.1911,168.86,168.83,6.73]
[1717522345730,2.1911,168.86,168.82,2.1916]
[1717522346029,2.1911,168.86,168.83,6.73]
[1717522346247,6.9,168.89,168.81,45.0]
[1717522346555,10.9559,168.86,168.79,2.1919]
[1717522346757,2.1914,168.84,168.79,2.1919]
[1717522347056,2.1915,168.83,168.81,6.73]
[1717522347429,10.4975,168.86,168.81,6.73]
[1717522347631,2.1914,168.84,168.79,2.192]
[1717522347855,2.1914,168.84,168.81,6.73]
[1717522348529,4.3829,168.84,168.77,2.1922]
[1717522348730,2.1917,168.82,168.78,2.1921]
[1717522348957,2.1917,168.82,168.79,6.73]
[1717522349548,2.1914,168.84,168.79,2.192]
[1717522349755,2.1914,168.84,168.81,6.73]
[1717522352231,2.1914,168.84,168.82,6.73]
[1717522352548,2.1913,168.85,168.83,6.73]
[1717522353156,2.1914,168.84,168.83,6.73]
[1717522354436,2.1917,168.82,168.81,6.73]
[1717522355358,2.1916,168.83,168.81,6.73]
[1717522355558,2.1916,168.83,168.82,6.73]
[1717522356165,2.1915,168.84,168.82,6.73]
[1717522357054,2.1915,168.83,168.82,6.73]
[1717522360460,2.1916,168.82,168.81,6.73]
[1717522361759,2.1916,168.83,168.81,6.73]
[1717522362648,2.1915,168.84,168.81,6.73]
[1717522363163,2.1915,168.83,168.81,6.73]
[1717522363564,2.1915,168.83,168.79,2.192]
[1717522363741,2.1915,168.83,168.81,6.73]
[1717522364653,2.1914,168.84,168.81,6.73]
[1717522365042,2.1915,168.83,168.81,6.73]
[1717522365762,2.1914,168.84,168.81,6.73]
[1717522366067,2.1915,168.83,168.81,6.73]
[1717522366570,2.1915,168.83,168.78,2.1921]
[1717522366760,2.1915,168.83,168.81,6.73]
[1717522370680,2.1915,168.84,168.82,6.73]
[1717522370971,2.1913,168.85,168.83,6.73]
[1717522371858,2.1914,168.84,168.83,6.73]
[1717522372048,2.1915,168.83,168.82,6.73]
[1717522372770,4.3826,168.85,168.82,6.73]
[1717522372973,2.1915,168.84,168.83,6.73]
[1717522375448,2.1915,168.84,168.82,6.73]
[1717522375862,2.1915,168.83,168.82,6.73]
[1717522376775,2.1913,168.85,168.82,6.73]
[1717522377167,2.1914,168.84,168.82,6.73]
[1717522378182,2.1913,168.85,168.82,6.73]
[1717522378383,2.1914,168.84,168.82,6.73]
[1717522378667,2.1913,168.85,168.82,6.73]
[1717522379272,2.1914,168.84,168.8,2.1918]
[1717522379451,2.1914,168.84,168.82,6.73]
[1717522380042,2.1914,168.84,168.8,2.1918]
[1717522380246,2.1914,168.84,168.82,6.73]
[1717522380455,2.1915,168.83,168.79,2.192]
[1717522380676,2.1915,168.83,168.81,6.73]
[1717522381869,6.73,168.88,168.74,22.4694]
[1717522382055,6.73,168.88,168.74,8.2917]
[1717522382056,4.3837,168.81,168.74,8.2917]
[1717522382254,2.1921,168.79,168.77,6.73]
[1717522382454,2.362,168.8,168.77,6.73]
[1717522383676,2.1923,168.78,168.72,2.1929]
[1717522383868,2.1923,168.78,168.74,6.73]
[1717522384254,2.3619,168.8,168.77,6.73]
[1717522386969,2.1918,168.81,168.79,6.73]
[1717522387285,2.1916,168.82,168.8,6.73]
[1717522387980,2.1916,168.83,168.8,6.73]
[1717522388662,2.1916,168.83,168.81,6.73]
[1717522389162,2.1916,168.83,168.82,6.73]
[1717522389770,6.4381,168.88,168.82,6.73]
[1717522389960,6.4381,168.88,168.8,6.73]
[1717522390169,2.1912,168.86,168.85,6.73]
[1717522390474,2.1912,168.86,168.81,2.1918]
[1717522390661,2.1912,168.86,168.84,6.73]
[1717522391078,2.1912,168.86,168.85,6.73]
[1717522391687,2.191,168.87,168.85,6.73]
[1717522391863,2.1909,168.88,168.82,2.1915]
[1717522392064,2.1909,168.88,168.86,6.73]
[1717522392682,2.1908,168.89,168.86,6.73]
[1717522392884,2.1907,168.9,168.87,6.73]
[1717522393184,2.1907,168.9,168.88,6.73]
[1717522394271,6.1466,168.94,168.87,2.191]
[1717522394489,6.1466,168.94,168.9,6.73]
[1717522394697,6.1466,168.94,168.91,6.73]
[1717522394879,2.1902,168.94,168.92,6.73]
[1717522395090,2.1902,168.93,168.92,6.73]
[1717522395389,19.4966,168.96,168.85,130.956]
[1717522395390,2.1901,168.94,168.91,6.73]
[1717522395699,2.1901,168.94,168.92,6.73]
[1717522395865,2.1901,168.95,168.92,6.73]
[1717522398072,2.1899,168.96,168.93,6.73]
[1717522398273,2.19,168.95,168.93,6.73]
[1717522399282,2.1899,168.96,168.94,6.73]
[1717522399483,2.1898,168.96,168.94,6.73]
[1717522399688,3.2004047,168.97,168.94,6.73]
[1717522400564,3.2004047,168.97,168.91,2.1904]
[1717522400771,3.2004047,168.97,168.94,6.73]
[1717522402004,0.8406047,168.97,168.93,2.1902]
[1717522402297,0.8406047,168.97,168.96,6.73]
[1717522402692,0.8406047,168.97,168.96,7.57946215]
[1717522402870,0.8406047,168.97,168.96,8.9198]
[1717522403077,0.8406047,168.97,168.96,6.73]
[1717522403285,0.8406047,168.97,168.92,2.1903]
[1717522403486,7.4098047,168.97,168.87,120.0]
[1717522403798,2.1902,168.93,168.9,6.73]
[1717522404503,2.1903,168.93,168.88,2.1908]
[1717522404671,0.17,168.94,168.85,6.2807]
[1717522404873,7.07,168.94,168.85,8.4719]
[1717522405202,2.1905,168.91,168.87,6.73]
[1717522405378,2.1906,168.9,168.86,6.73]
[1717522406491,2.1905,168.91,168.86,6.73]
[1717522407293,2.1905,168.91,168.87,6.73]
[1717522407693,0.17,168.9,168.81,141.1094]
[1717522408002,0.34,168.9,168.79,120.0]
[1717522408205,2.1911,168.87,168.83,6.73]
[1717522408678,2.191,168.87,168.83,6.73]
[1717522408874,0.17,168.88,168.83,8.9215]
[1717522409083,0.34,168.88,168.84,6.73]
[1717522409287,0.34,168.88,168.83,2.1915]
[1717522409491,0.34,168.88,168.83,8.9215]
[1717522409690,2.1906,168.9,168.81,120.0]
[1717522409891,2.1906,168.9,168.85,6.73]
[1717522411297,2.1908,168.89,168.85,6.73]
[1717522411509,0.17,168.88,168.83,2.1915]
[1717522411803,2.3609,168.88,168.83,8.9215]
[1717522412104,0.17,168.88,168.83,2.1915]
[1717522412298,2.3609,168.88,168.82,2.1916]
[1717522412982,2.3609,168.88,168.83,2.1915]
[1717522413202,0.17,168.88,168.84,2.1914]
[1717522414099,0.17,168.88,168.83,2.1914]
[1717522415715,6.2639,168.87,168.77,20.2]
[1717522416016,2.1916,168.83,168.77,2.1923]
[1717522416183,2.1916,168.83,168.78,2.1922]
[1717522416683,2.1915,168.83,168.78,2.1922]
[1717522416883,2.1913,168.85,168.8,2.1918]
[1717522417109,8.4982,168.85,168.8,2.1918]
[1717522417308,6.3069,168.85,168.81,2.1918]
[1717522417503,8.4982,168.85,168.8,2.1919]
[1717522417802,6.6469,168.84,168.8,2.1919]
[1717522418008,8.8383,168.84,168.79,2.192]
[1717522419194,8.8383,168.84,168.8,2.1919]
[1717522419195,6.6469,168.84,168.8,2.1919]
[1717522419607,6.6469,168.84,168.81,2.1918]
[1717522420091,6.3069,168.83,168.8,2.1918]
[1717522421019,6.3069,168.83,168.79,2.192]
[1717522421387,6.3069,168.83,168.8,2.1919]
[1717522422208,6.3069,168.83,168.81,2.1918]
[1717522422392,0.34,168.84,168.81,2.1918]
[1717522422588,0.34,168.84,168.81,2.1917]
[1717522422788,0.17,168.83,168.8,2.1918]
[1717522423086,6.3069,168.84,168.8,2.1918]
[1717522423288,0.17,168.83,168.8,2.1918]
[1717522424016,0.17,168.83,168.81,2.1918]
[1717522424807,6.3069,168.84,168.81,2.1918]
[1717522424989,0.34,168.85,168.81,2.1918]
[1717522425197,2.1912,168.86,168.81,2.1917]
[1717522425386,8.3379,168.86,168.81,2.1917]
[1717522427015,6.1467,168.86,168.79,4.3841]
[1717522427212,2.1915,168.84,168.79,2.192]
[1717522427520,2.5313,168.85,168.78,10.9608]
[1717522427697,8.2434,168.86,168.81,2.1917]
[1717522428017,8.4134,168.86,168.81,2.1917]
[1717522428593,8.4134,168.86,168.79,10.96]
[1717522429319,8.4134,168.86,168.81,2.1917]
[1717522429791,2.1913,168.85,168.81,2.1917]
[1717522429991,8.4134,168.86,168.81,2.1917]
[1717522430293,8.2434,168.86,168.81,2.1916]
[1717522430709,2.1912,168.85,168.81,2.1916]
[1717522431326,2.1912,168.85,168.8,2.1918]
[1717522432003,8.2434,168.86,168.82,8.9316]
[1717522432194,0.34,168.87,168.84,6.74]
[1717522432395,0.34,168.87,168.85,6.74]
[1717522432793,2.1909,168.88,168.85,6.74]
[1717522433004,2.1908,168.89,168.85,6.74]
[1717522433228,2.1908,168.89,168.86,6.74]
[1717522433919,2.1908,168.89,168.85,6.74]
[1717522435119,2.1909,168.88,168.85,6.74]
[1717522435342,2.1909,168.88,168.83,2.1914]
[1717522435524,2.191,168.87,168.85,6.74]
[1717522435739,2.1909,168.88,168.85,6.74]
[1717522436330,6.0932,168.86,168.79,4.3839]
[1717522436643,2.1913,168.85,168.8,2.1918]
[1717522436960,2.1913,168.85,168.81,6.74]
[1717522437151,6.0932,168.86,168.76,15.3469]
[1717522437152,2.1915,168.83,168.76,15.3469]
[1717522437321,2.1918,168.81,168.76,2.1923]
[1717522437719,2.1918,168.81,168.77,6.74]
[1717522437920,2.1918,168.81,168.77,8.9323]
[1717522438450,8.4428,168.82,168.77,8.9323]
[1717522438821,8.4428,168.82,168.78,8.9321]
[1717522438822,6.2511,168.82,168.78,8.9321]
[1717522439021,6.2511,168.82,168.78,6.74]
[1717522439231,6.2511,168.82,168.78,8.9321]
[1717522439434,6.2511,168.82,168.79,6.74]
[1717522440031,8.4427,168.82,168.79,6.74]
[1717522440842,6.2511,168.82,168.79,6.74]
[1717522441046,8.4427,168.82,168.79,6.74]
[1717522441258,8.4427,168.82,168.78,2.1922]
[1717522441259,8.4427,168.82,168.77,2.1922]
[1717522441467,8.6006,168.81,168.78,6.74]
[1717522441767,6.4088,168.81,168.78,6.74]
[1717522441969,2.3617,168.82,168.78,6.74]
[1717522442136,0.17,168.82,168.72,130.31389056]
[1717522442469,0.17,168.82,168.74,2.1926]
[1717522442470,2.1919,168.8,168.74,2.1926]
[1717522442771,8.4828,168.8,168.76,6.74]
[1717522443142,2.1918,168.81,168.75,2.1925]
[1717522443355,6.2908,168.79,168.75,8.9325]
[1717522443967,6.2908,168.79,168.76,6.74]
[1717522444142,6.2908,168.79,168.76,8.9324]
[1717522444344,6.2908,168.79,168.77,6.74]
[1717522444641,6.2908,168.79,168.76,6.74]
[1717522445974,6.2908,168.79,168.75,2.1925]
[1717522446185,6.2908,168.79,168.76,6.74]
[1717522446547,6.2908,168.79,168.71,4.3861]
[1717522446747,6.2908,168.79,168.76,6.74]
[1717522447051,6.2908,168.79,168.76,8.9324]
[1717522447243,6.2908,168.79,168.76,6.74]
[1717522447762,0.34,168.8,168.77,6.74]
[1717522447968,0.34,168.81,168.78,6.74]
[1717522448179,0.34,168.81,168.77,6.74]
[1717522448361,2.5317,168.82,168.77,8.9322]
[1717522448670,9.1086,168.82,168.78,6.74]
[1717522449364,9.1086,168.82,168.79,6.74]
[1717522450680,2.1915,168.84,168.81,6.74]
[1717522451242,8.5591,168.86,168.82,6.74]
[1717522451488,6.3679,168.86,168.82,6.74]
[1717522451661,6.3679,168.86,168.82,8.9316]
[1717522452072,6.1379,168.9,168.84,6.74]
[1717522452251,10.519,168.91,168.85,6.74]
[1717522452458,6.1379,168.89,168.86,6.74]
[1717522452666,8.3284,168.91,168.87,6.74]
[1717522453280,8.3284,168.91,168.88,6.74]
[1717522453573,2.1905,168.91,168.88,6.74]
[1717522454282,2.1905,168.91,168.89,6.74]
[1717522454455,2.1906,168.9,168.89,6.74]
[1717522455667,2.1906,168.9,168.88,6.74]
[1717522455973,4.381,168.91,168.83,122.1914]
[1717522456274,2.1908,168.89,168.84,45.0]
[1717522456594,2.1906,168.9,168.84,47.1914]
[1717522456963,2.1906,168.9,168.85,2.1912]
[1717522457492,2.1907,168.89,168.84,47.1913]
[1717522458383,4.381,168.91,168.83,2.1915]
[1717522458556,2.1909,168.88,168.83,2.1915]
[1717522459262,15.3989,168.9,168.81,20.0]
[1717522459493,2.1913,168.85,168.76,13.1412]
[1717522459680,2.1913,168.85,168.8,2.1918]
[1717522459978,2.1913,168.85,168.79,2.192]
[1717522460182,2.1914,168.84,168.79,2.192]
[1717522460361,2.1914,168.84,168.78,2.1921]
[1717522460559,2.3613,168.85,168.79,2.192]
[1717522460764,2.3613,168.85,168.8,2.1919]
[1717522461284,8.3728,168.85,168.8,2.1919]
[1717522461671,8.3728,168.85,168.79,2.192]
[1717522461874,2.1914,168.84,168.79,2.192]
[1717522462302,8.3727,168.85,168.8,2.1919]
[1717522462610,6.1815,168.85,168.8,2.1919]
[1717522463098,6.1815,168.85,168.78,45.0]
[1717522463099,0.17,168.86,168.81,2.1917]
[1717522463678,2.191,168.87,168.81,2.1917]
[1717522464167,2.1907,168.9,168.82,124.3833]
[1717522464378,2.1907,168.9,168.85,2.1912]
[1717522465402,2.1907,168.9,168.84,2.1913]
[1717522465577,17.0957,168.93,168.84,2.1913]
[1717522465578,2.1908,168.89,168.84,2.1913]
[1717522465993,0.17,168.91,168.84,2.1913]